fUST/lending_fUST_20260109
["ID","MTS","AMOUNT","RATE_DAILY","PERIOD"]
[401114746,1767942648589,-2487.15318209,0.00018357,2]
[401114747,1767942648599,-2403.26771612,0.00018438,2]
[401114748,1767942648608,-619.25363932,0.00018514,11]
[401114749,1767942648618,-5000.0,0.0001863,2]
[401114750,1767942648627,-5000.0,0.0001863,2]
[401114751,1767942648637,-5000.0,0.0001863,2]
[401114752,1767942648647,-5500.0,0.00018752,2]
[401114753,1767942648656,-624.0022242,0.00018824,2]
[401114754,1767942648665,-3474.10487346,0.00018831,3]
[401114755,1767942648675,-6821.33375617,0.00018831,3]
[401114756,1767942648684,-5000.0,0.00018863,2]
[401114757,1767942648693,-9338.12945805,0.00018887,2]
[401114758,1767942648703,-2403.26771612,0.00018892,2]
[401114759,1767942648712,-303.10001603,0.000189,2]
[401114760,1767942648721,-346.92554585,0.00018905,2]
[401114761,1767942648731,-533.88981491,0.00018905,2]
[401114762,1767942648740,-2579.17784983,0.00018905,2]
[401114763,1767942648751,-840.36642421,0.00018917,2]
[401114764,1767942648761,-151.0,0.00018922,2]
[401114765,1767942648770,-181.573329,0.00018922,2]
[401114766,1767942648780,-151.0,0.00018922,2]
[401114767,1767942648789,-186.239267,0.00018922,2]
[401114768,1767942648799,-186.239267,0.00018922,2]
[401114769,1767942648808,-186.239267,0.00018922,2]
[401114770,1767942648818,-186.239276,0.00018922,2]
[401114771,1767942648828,-2403.26771625,0.00018972,2]
[401114772,1767942648838,-20000.0,0.00019,2]
[401114773,1767942648847,-303.10001603,0.00019089,2]
[401114774,1767942648857,-151.0,0.000191,2]
[401114775,1767942648867,-151.0,0.00019178,2]
[401114776,1767942648877,-151.0,0.00019178,2]
[401114777,1767942648886,-151.000003,0.00019178,2]
[401114778,1767942648896,-221.941164,0.00019178,2]
[401114779,1767942648907,-221.941164,0.00019178,2]
[401114780,1767942648916,-221.941164,0.00019178,2]
[401114781,1767942648934,-221.941164,0.00019178,2]
[401114782,1767942648943,-221.941164,0.00019178,2]
[401114783,1767942648952,-221.941164,0.00019178,2]
[401114784,1767942648962,-221.941164,0.00019178,2]
[401114785,1767942648972,-221.941164,0.00019178,2]
[401114786,1767942648981,-221.941164,0.00019178,2]
[401114787,1767942648991,-221.941164,0.00019178,2]
[401114788,1767942649000,-221.941164,0.00019178,2]
[401114789,1767942649010,-221.941164,0.00019178,2]
[401114790,1767942649020,-221.941164,0.00019178,2]
[401114791,1767942649029,-221.941164,0.00019178,2]
[401114792,1767942649039,-221.941164,0.00019178,2]
[401114793,1767942649049,-221.941164,0.00019178,2]
[401114794,1767942649058,-221.941164,0.00019178,2]
[401114795,1767942649068,-221.941164,0.00019178,2]
[401114796,1767942649078,-221.941164,0.00019178,2]
[401114797,1767942649088,-221.941164,0.00019178,2]
[401114798,1767942649098,-5500.0,0.00019178,2]
[401114799,1767942649107,-3878.11739551,0.00019178,2]
[401114800,1767942649117,-918.97723055,0.00019178,2]
[401114801,1767942649128,-8254.1415649,0.00019255,2]
[401114802,1767942649137,-503.9265235,0.00019255,2]
[401114803,1767942649147,-7972.56017876,0.00019272,2]
[401114804,1767942649156,-303.45210152,0.00019278,2]
[401114805,1767942649166,-6000.0,0.000193,2]
[401114806,1767942649176,-812918.09928616,0.00019305,2]
[401114807,1767942649186,-151.0,0.00019305,2]
[401114808,1767942649196,-151.0,0.00019305,2]
[401114809,1767942649206,-10193.36340845,0.0001938,2]
[401114810,1767942649215,-15735.12,0.000194,2]
[401114811,1767942649225,-428.09924904,0.00019453,2]
[401114812,1767942649235,-553.64373807,0.00019453,2]
[401114813,1767942649244,-2674.60743027,0.00019453,2]
[401114814,1767942649254,-708.67564991,0.00019506,2]
[401114815,1767942649264,-619.25363932,0.0001958,12]
[401114816,1767942649275,-195.979906,0.00019635,2]
[401114817,1767942649287,-1000.0,0.00019674,2]
[401114818,1767942649297,-1000.0,0.00019674,2]
[401114819,1767942649307,-579.0,0.00019674,2]
[401114820,1767942649316,-6000.0,0.00019726,2]
[401114821,1767942649325,-151.25281158,0.0001976,2]
[401114822,1767942649335,-8095.41397325,0.00019786,3]
[401114823,1767942649344,-232.45700431,0.00019848,2]
[401114824,1767942649353,-289.73943239,0.00019945,3]
[401114825,1767942649363,-25404.64784075,0.0002,2]
[401114826,1767942649372,-167.54,0.0002,2]
[401114827,1767942649382,-163.82,0.0002,2]
[401114828,1767942649392,-163.2,0.0002,2]
[401114829,1767942649401,-999.999999,0.0002,2]
[401114830,1767942649410,-1068.024101,0.0002,2]
[401114831,1767942649420,-574.12855637,0.00020001,2]
[401114832,1767942649430,-2773.56790519,0.00020001,2]
[401114833,1767942649440,-589.69745305,0.00020056,5]
[401114834,1767942649449,-4685.33666249,0.0002019,3]
[401114835,1767942649461,-6500.0,0.00020274,2]
[401114836,1767942649471,-153.0,0.00020274,2]
[401114837,1767942649480,-153.0,0.00020274,2]
[401114838,1767942649491,-153.0,0.00020274,2]
[401114839,1767942649501,-151.0,0.000203,4]
[401114840,1767942649510,-2146.0,0.00020479,2]
[401114841,1767942649520,-1366.0,0.00020479,2]
[401114842,1767942649529,-628.0,0.00020479,2]
[401114843,1767942649540,-714.0,0.00020479,2]
[401114844,1767942649549,-417.0,0.00020479,2]
[401114845,1767942649559,-196.35,0.00020479,2]
[401114846,1767942649570,-417.0,0.00020479,2]
[401114847,1767942649580,-1041.66666667,0.00020519,2]
[401114848,1767942649589,-3056.436798,0.00020548,2]
[401114849,1767942649599,-595.37131296,0.00020549,2]
[401114850,1767942649608,-619.25363932,0.00020646,14]
[401114851,1767942649617,-3221.1440017,0.00020651,2]
[401114852,1767942649627,-15735.12,0.000207,2]
[401114853,1767942649637,-151.0,0.000207,2]
[401114854,1767942649647,-350.1,0.00020734,2]
[401114855,1767942649658,-156.74880836,0.00020792,5]
[401114856,1767942649668,-7000.0,0.00020822,2]
[401114857,1767942649678,-678.00241667,0.00020824,2]
[401114858,1767942649687,-24790.43694266,0.00021,2]
[401114859,1767942649696,-1422.29,0.00021,2]
[401114860,1767942649705,-164.67801811,0.00021,4]
[401114861,1767942649715,-151.0,0.00021,3]
[401114862,1767942649725,-617.40005154,0.00021097,2]
[401114863,1767942649735,-718.7343769,0.00021174,2]
[401114864,1767942649745,-3093.87713372,0.0002137,2]
[401114865,1767942649755,-151.0,0.000214,4]
[401114866,1767942649764,-6006.53001288,0.00021413,2]
[401114867,1767942649774,-5000.0,0.00021413,2]
[401114868,1767942649784,-1039.20549226,0.000215,2]
[401114869,1767942649794,-12854.43519592,0.000215,2]
[401114870,1767942649804,-777.0,0.000215,2]
[401114871,1767942649813,-350.1,0.0002159,2]
[401114872,1767942649823,-10193.36340845,0.00021599,2]
[401114873,1767942649832,-1000.0,0.00021641,10]
[401114874,1767942649843,-1000.0,0.00021641,10]
[401114875,1767942649853,-1000.0,0.00021641,10]
[401114876,1767942649863,-640.24385345,0.00021645,2]
[401114877,1767942649873,-619.25363932,0.00021712,15]
[401114878,1767942649883,-151.0,0.00021918,2]
[401114879,1767942649892,-151.0,0.00021918,2]
[401114880,1767942649902,-157.098609,0.00021918,2]
[401114881,1767942649912,-151.0,0.00021918,2]
[401114882,1767942649921,-205.052042,0.00021918,2]
[401114883,1767942649932,-151.0,0.00021918,2]
[401114884,1767942649942,-166.045168,0.00021918,2]
[401114885,1767942649952,-151.0,0.00021918,2]
[401114886,1767942649962,-151.0,0.00021918,2]
[401114887,1767942649974,-151.0,0.00021918,2]
[401114888,1767942649987,-151.0,0.00021918,2]
[401114889,1767942649997,-151.0,0.00021918,2]
[401114890,1767942650007,-151.0,0.00021918,2]
[401114891,1767942650017,-151.0,0.00021918,2]
[401114892,1767942650027,-151.0,0.00021918,2]
[401114893,1767942650037,-151.0,0.00021918,2]
[401114894,1767942650047,-244.441363,0.00021918,2]
[401114895,1767942650058,-151.0,0.00021918,2]
[401114896,1767942650068,-151.0,0.00021918,2]
[401114897,1767942650078,-268.109172,0.00021918,2]
[401114898,1767942650090,-213.664329,0.00021918,2]
[401114899,1767942650100,-151.0,0.00021918,2]
[401114900,1767942650111,-626.530657,0.00021918,2]
[401114901,1767942650121,-626.530657,0.00021918,2]
[401114902,1767942650131,-626.530657,0.00021918,2]
[401114903,1767942650141,-626.530657,0.00021918,2]
[401114904,1767942650151,-626.530657,0.00021918,2]
[401114905,1767942650161,-626.530657,0.00021918,2]
[401114906,1767942650171,-626.530657,0.00021918,2]
[401114907,1767942650181,-626.530657,0.00021918,2]
[401114908,1767942650192,-626.530657,0.00021918,2]
[401114909,1767942650202,-626.530657,0.00021918,2]
[401114910,1767942650212,-626.530657,0.00021918,2]
[401114911,1767942650223,-626.530657,0.00021918,2]
[401114912,1767942650235,-626.530657,0.00021918,2]
[401114913,1767942650244,-626.530657,0.00021918,2]
[401114914,1767942650257,-626.530657,0.00021918,2]
[401114915,1767942650267,-626.530657,0.00021918,2]
[401114916,1767942650277,-626.530657,0.00021918,2]
[401114917,1767942650286,-626.530657,0.00021918,2]
[401114918,1767942650295,-626.530657,0.00021918,2]
[401114919,1767942650304,-626.530663,0.00021918,2]
[401114920,1767942650314,-151.0,0.00021918,2]
[401114921,1767942650439,-151.0,0.00021918,2]
[401114922,1767942650450,-151.0,0.00021918,2]
[401114923,1767942650459,-151.0,0.00021918,2]
[401114924,1767942650468,-151.0,0.00021918,2]
[401114925,1767942650478,-151.0,0.00021918,2]
[401114926,1767942650490,-156.980802,0.00021918,2]
[401114927,1767942650501,-3684.236752,0.00021918,2]
[401114928,1767942650512,-3684.236752,0.00021918,2]
[401114929,1767942650523,-3684.236752,0.00021918,2]
[401114930,1767942650533,-3684.236752,0.00021918,2]
[401114931,1767942650542,-3684.236752,0.00021918,2]
[401114932,1767942650551,-3684.236752,0.00021918,2]
[401114933,1767942650560,-3684.236752,0.00021918,2]
[401114934,1767942650569,-3684.236752,0.00021918,2]
[401114935,1767942650579,-3684.236752,0.00021918,2]
[401114936,1767942650588,-3684.236752,0.00021918,2]
[401114937,1767942650596,-3684.236752,0.00021918,2]
[401114938,1767942650606,-3684.236752,0.00021918,2]
[401114939,1767942650617,-3684.236752,0.00021918,2]
[401114940,1767942650629,-3684.236752,0.00021918,2]
[401114941,1767942650639,-3684.236752,0.00021918,2]
[401114942,1767942650650,-3684.236752,0.00021918,2]
[401114943,1767942650661,-3684.236752,0.00021918,2]
[401114944,1767942650670,-3684.236752,0.00021918,2]
[401114945,1767942650680,-3684.236752,0.00021918,2]
[401114946,1767942650689,-3684.23676,0.00021918,2]
[401114947,1767942650700,-313.573847,0.00021918,2]
[401114948,1767942650710,-313.573847,0.00021918,2]
[401114949,1767942650720,-313.573847,0.00021918,2]
[401114950,1767942650730,-313.573847,0.00021918,2]
[401114951,1767942650739,-313.573847,0.00021918,2]
[401114952,1767942650748,-313.573847,0.00021918,2]
[401114953,1767942650758,-313.573847,0.00021918,2]
[401114954,1767942650767,-313.573847,0.00021918,2]
[401114955,1767942650777,-313.573847,0.00021918,2]
[401114956,1767942650787,-313.573847,0.00021918,2]
[401114957,1767942650798,-313.573847,0.00021918,2]
[401114958,1767942650808,-313.573847,0.00021918,2]
[401114959,1767942650818,-313.573847,0.00021918,2]
[401114960,1767942650828,-313.573847,0.00021918,2]
[401114961,1767942650839,-313.573847,0.00021918,2]
[401114962,1767942650852,-313.573847,0.00021918,2]
[401114963,1767942650868,-313.573847,0.00021918,2]
[401114964,1767942650877,-313.573847,0.00021918,2]
[401114965,1767942650887,-313.573847,0.00021918,2]
[401114966,1767942650897,-313.573839,0.00021918,2]
[401114967,1767942650907,-151.0,0.00021918,2]
[401114968,1767942650917,-170.78519,0.00021918,2]
[401114969,1767942650927,-151.0,0.00021918,2]
[401114970,1767942650937,-151.0,0.00021918,2]
[401114971,1767942650946,-151.0,0.00021918,2]
[401114972,1767942650956,-151.0,0.00021918,2]
[401114973,1767942650966,-151.0,0.00021918,2]
[401114974,1767942650975,-151.0,0.00021918,2]
[401114975,1767942650985,-151.0,0.00021918,2]
[401114976,1767942650995,-151.0,0.00021918,2]
[401114977,1767942651004,-151.0,0.00021918,2]
[401114978,1767942651013,-249.793222,0.00021918,2]
[401114979,1767942651023,-151.0,0.00021918,2]
[401114980,1767942651033,-154.61308,0.00021918,2]
[401114981,1767942651042,-189.33588,0.00021918,2]
[401114982,1767942651051,-189.33588,0.00021918,2]
[401114983,1767942651060,-189.33588,0.00021918,2]
[401114984,1767942651069,-189.33588,0.00021918,2]
[401114985,1767942651079,-189.33588,0.00021918,2]
[401114986,1767942651088,-189.33588,0.00021918,2]
[401114987,1767942651097,-189.33588,0.00021918,2]
[401114988,1767942651107,-189.33588,0.00021918,2]
[401114989,1767942651116,-189.33588,0.00021918,2]
[401114990,1767942651126,-189.33588,0.00021918,2]
[401114991,1767942651136,-189.33588,0.00021918,2]
[401114992,1767942651145,-189.33588,0.00021918,2]
[401114993,1767942651155,-189.33588,0.00021918,2]
[401114994,1767942651164,-189.33588,0.00021918,2]
[401114995,1767942651174,-189.33588,0.00021918,2]
[401114996,1767942651183,-189.33588,0.00021918,2]
[401114997,1767942651194,-189.33588,0.00021918,2]
[401114998,1767942651204,-189.33588,0.00021918,2]
[401114999,1767942651215,-189.33588,0.00021918,2]
[401115000,1767942651226,-189.335881,0.00021918,2]
[401115001,1767942651235,-151.0,0.00021918,2]
[401115002,1767942651245,-151.0,0.00021918,2]
[401115003,1767942651254,-151.0,0.00021918,2]
[401115004,1767942651264,-151.0,0.00021918,2]
[401115005,1767942651274,-151.0,0.00021918,2]
[401115006,1767942651283,-151.0,0.00021918,2]
[401115007,1767942651293,-151.0,0.00021918,2]
[401115008,1767942651303,-151.0,0.00021918,2]
[401115009,1767942651314,-151.0,0.00021918,2]
[401115010,1767942651324,-157.480596,0.00021918,2]
[401115011,1767942651334,-163.657676,0.00021918,2]
[401115012,1767942651343,-163.657676,0.00021918,2]
[401115013,1767942651353,-163.657676,0.00021918,2]
[401115014,1767942651363,-163.657676,0.00021918,2]
[401115015,1767942651372,-163.657676,0.00021918,2]
[401115016,1767942651382,-163.657676,0.00021918,2]
[401115017,1767942651391,-163.657676,0.00021918,2]
[401115018,1767942651400,-163.657676,0.00021918,2]
[401115019,1767942651411,-163.657676,0.00021918,2]
[401115020,1767942651420,-163.657676,0.00021918,2]
[401115021,1767942651430,-163.657676,0.00021918,2]
[401115022,1767942651440,-163.657676,0.00021918,2]
[401115023,1767942651450,-163.657676,0.00021918,2]
[401115024,1767942651460,-163.657676,0.00021918,2]
[401115025,1767942651470,-163.657676,0.00021918,2]
[401115026,1767942651480,-163.657676,0.00021918,2]
[401115027,1767942651490,-163.657676,0.00021918,2]
[401115028,1767942651500,-163.657676,0.00021918,2]
[401115029,1767942651512,-163.657676,0.00021918,2]
[401115030,1767942651522,-163.657674,0.00021918,2]
[401115031,1767942651532,-151.0,0.00021918,2]
[401115032,1767942651542,-155.741739,0.00021918,2]
[401115033,1767942651551,-199.159401,0.00021918,2]
[401115034,1767942651561,-199.159401,0.00021918,2]
[401115035,1767942651571,-199.159401,0.00021918,2]
[401115036,1767942651581,-199.159401,0.00021918,2]
[401115037,1767942651591,-199.159401,0.00021918,2]
[401115038,1767942651600,-199.159401,0.00021918,2]
[401115039,1767942651610,-199.159401,0.00021918,2]
[401115040,1767942651619,-199.159401,0.00021918,2]
[401115041,1767942651628,-199.159401,0.00021918,2]
[401115042,1767942651639,-199.159401,0.00021918,2]
[401115043,1767942651648,-199.159401,0.00021918,2]
[401115044,1767942651658,-199.159401,0.00021918,2]
[401115045,1767942651667,-199.159401,0.00021918,2]
[401115046,1767942651676,-199.159401,0.00021918,2]
[401115047,1767942651686,-151.0,0.00021918,2]
[401115048,1767942651696,-199.159401,0.00021918,2]
[401115049,1767942651705,-151.0,0.00021918,2]
[401115050,1767942651715,-199.159401,0.00021918,2]
[401115051,1767942651724,-151.0,0.00021918,2]
[401115052,1767942651734,-199.159401,0.00021918,2]
[401115053,1767942651744,-151.0,0.00021918,2]
[401115054,1767942651753,-199.159401,0.00021918,2]
[401115055,1767942651763,-224.949842,0.00021918,2]
[401115056,1767942651772,-199.159401,0.00021918,2]
[401115057,1767942651782,-199.159398,0.00021918,2]
[401115058,1767942651792,-212.370924,0.00021918,2]
[401115059,1767942651801,-151.0,0.00021918,2]
[401115060,1767942651810,-151.0,0.00021918,2]
[401115061,1767942651820,-151.0,0.00021918,2]
[401115062,1767942651829,-151.0,0.00021918,2]
[401115063,1767942651839,-151.0,0.00021918,2]
[401115064,1767942651848,-151.0,0.00021918,2]
[401115065,1767942651858,-151.0,0.00021918,2]
[401115066,1767942651868,-151.0,0.00021918,2]
[401115067,1767942651878,-151.0,0.00021918,2]
[401115068,1767942651888,-217.946422,0.00021918,2]
[401115069,1767942651898,-298.26848,0.00021918,2]
[401115070,1767942651908,-298.26848,0.00021918,2]
[401115071,1767942651918,-298.26848,0.00021918,2]
[401115072,1767942651928,-298.26848,0.00021918,2]
[401115073,1767942651938,-298.26848,0.00021918,2]
[401115074,1767942651948,-298.26848,0.00021918,2]
[401115075,1767942651957,-298.26848,0.00021918,2]
[401115076,1767942651968,-298.26848,0.00021918,2]
[401115077,1767942651978,-298.26848,0.00021918,2]
[401115078,1767942651988,-298.26848,0.00021918,2]
[401115079,1767942651997,-298.26848,0.00021918,2]
[401115080,1767942652007,-298.26848,0.00021918,2]
[401115081,1767942652016,-298.26848,0.00021918,2]
[401115082,1767942652026,-298.26848,0.00021918,2]
[401115083,1767942652036,-298.26848,0.00021918,2]
[401115084,1767942652045,-298.26848,0.00021918,2]
[401115085,1767942652054,-298.26848,0.00021918,2]
[401115086,1767942652064,-298.26848,0.00021918,2]
[401115087,1767942652073,-298.26848,0.00021918,2]
[401115088,1767942652082,-498.400382,0.00021918,2]
[401115089,1767942652092,-298.268487,0.00021918,2]
[401115090,1767942652101,-498.400382,0.00021918,2]
[401115091,1767942652111,-498.400382,0.00021918,2]
[401115092,1767942652120,-498.400382,0.00021918,2]
[401115093,1767942652130,-498.400382,0.00021918,2]
[401115094,1767942652139,-498.400382,0.00021918,2]
[401115095,1767942652149,-498.400382,0.00021918,2]
[401115096,1767942652158,-498.400382,0.00021918,2]
[401115097,1767942652168,-498.400382,0.00021918,2]
[401115098,1767942652178,-498.400382,0.00021918,2]
[401115099,1767942652187,-498.400382,0.00021918,2]
[401115100,1767942652197,-498.400382,0.00021918,2]
[401115101,1767942652206,-498.400382,0.00021918,2]
[401115102,1767942652215,-498.400382,0.00021918,2]
[401115103,1767942652226,-498.400382,0.00021918,2]
[401115104,1767942652236,-498.400382,0.00021918,2]
[401115105,1767942652245,-498.400382,0.00021918,2]
[401115106,1767942652254,-498.400382,0.00021918,2]
[401115107,1767942652264,-498.400382,0.00021918,2]
[401115108,1767942652274,-498.400372,0.00021918,2]
[401115109,1767942652284,-304.851021,0.00021918,2]
[401115110,1767942652293,-304.851021,0.00021918,2]
[401115111,1767942652302,-304.851021,0.00021918,2]
[401115112,1767942652311,-304.851021,0.00021918,2]
[401115113,1767942652320,-304.851021,0.00021918,2]
[401115114,1767942652329,-304.851021,0.00021918,2]
[401115115,1767942652338,-304.851021,0.00021918,2]
[401115116,1767942652347,-304.851021,0.00021918,2]
[401115117,1767942652356,-304.851021,0.00021918,2]
[401115118,1767942652365,-304.851021,0.00021918,2]
[401115119,1767942652374,-304.851021,0.00021918,2]
[401115120,1767942652388,-304.851021,0.00021918,2]
[401115121,1767942652399,-304.851021,0.00021918,2]
[401115122,1767942652408,-304.851021,0.00021918,2]
[401115123,1767942652420,-304.851021,0.00021918,2]
[401115124,1767942652433,-304.851021,0.00021918,2]
[401115125,1767942652443,-304.851021,0.00021918,2]
[401115126,1767942652455,-304.851021,0.00021918,2]
[401115127,1767942652465,-304.851021,0.00021918,2]
[401115128,1767942652475,-304.85102,0.00021918,2]
[401115129,1767942652485,-151.0,0.00021918,2]
[401115130,1767942652495,-171.726927,0.00021918,2]
[401115131,1767942652504,-151.00004,0.00021918,2]
[401115132,1767942652517,-151.0,0.00021918,2]
[401115133,1767942652528,-151.0,0.00021918,2]
[401115134,1767942652538,-151.0,0.00021918,2]
[401115135,1767942652547,-151.0,0.00021918,2]
[401115136,1767942652556,-151.0,0.00021918,2]
[401115137,1767942652566,-151.0,0.00021918,2]
[401115138,1767942652575,-151.0,0.00021918,2]
[401115139,1767942652584,-151.0,0.00021918,2]
[401115140,1767942652593,-151.0,0.00021918,2]
[401115141,1767942652603,-151.0,0.00021918,2]
[401115142,1767942652612,-151.0,0.00021918,2]
[401115143,1767942652621,-151.0,0.00021918,2]
[401115144,1767942652630,-151.0,0.00021918,2]
[401115145,1767942652639,-151.0,0.00021918,2]
[401115146,1767942652648,-151.0,0.00021918,2]
[401115147,1767942652658,-151.0,0.00021918,2]
[401115148,1767942652667,-151.0,0.00021918,2]
[401115149,1767942652676,-151.0,0.00021918,2]
[401115150,1767942652685,-189.3332,0.00021918,2]
[401115151,1767942652696,-607.260341,0.00021918,2]
[401115152,1767942652705,-607.260341,0.00021918,2]
[401115153,1767942652715,-607.260341,0.00021918,2]
[401115154,1767942652724,-607.260341,0.00021918,2]
[401115155,1767942652734,-607.260341,0.00021918,2]
[401115156,1767942652744,-607.260341,0.00021918,2]
[401115157,1767942652754,-607.260341,0.00021918,2]
[401115158,1767942652764,-607.260341,0.00021918,2]
[401115159,1767942652775,-607.260341,0.00021918,2]
[401115160,1767942652786,-607.260341,0.00021918,2]
[401115161,1767942652796,-607.260341,0.00021918,2]
[401115162,1767942652806,-607.260341,0.00021918,2]
[401115163,1767942652816,-607.260341,0.00021918,2]
[401115164,1767942652825,-607.260341,0.00021918,2]
[401115165,1767942652835,-607.260341,0.00021918,2]
[401115166,1767942652844,-607.260341,0.00021918,2]
[401115167,1767942652853,-607.260341,0.00021918,2]
[401115168,1767942652863,-607.260341,0.00021918,2]
[401115169,1767942652872,-607.260341,0.00021918,2]
[401115170,1767942652881,-607.260332,0.00021918,2]
[401115171,1767942652890,-274.97237,0.00021918,2]
[401115172,1767942652900,-500.0,0.00021973,2]
[401115173,1767942652909,-500.0,0.00021973,2]
[401115174,1767942652919,-500.0,0.00021973,2]
[401115175,1767942652928,-500.0,0.00021973,2]
[401115176,1767942652938,-500.0,0.00021973,2]
[401115177,1767942652947,-500.0,0.00021973,2]
[401115178,1767942652957,-500.0,0.00021973,2]
[401115179,1767942652966,-500.0,0.00021973,2]
[401115180,1767942652976,-500.0,0.00021973,2]
[401115181,1767942653096,-500.0,0.00021973,2]
[401115182,1767942653106,-500.0,0.00021973,2]
[401115183,1767942653116,-500.0,0.00021973,2]
[401115184,1767942653126,-500.0,0.00021973,2]
[401115185,1767942653135,-500.0,0.00021973,2]
[401115186,1767942653144,-500.0,0.00021973,2]
[401115187,1767942653154,-500.0,0.00021973,2]
[401115188,1767942653163,-540.64696671,0.00021973,2]
[401115189,1767942653172,-201.765,0.00021989,2]
[401115190,1767942653181,-200.331,0.00021989,2]
[401115191,1767942653191,-221.518,0.00021989,2]
[401115192,1767942653201,-232.291,0.00021989,2]
[401115193,1767942653211,-243.257,0.00021989,2]
[401115194,1767942653220,-250.0,0.00021989,2]
[401115195,1767942653230,-261.15,0.00021989,2]
[401115196,1767942653239,-267.363,0.00021989,2]
[401115197,1767942653248,-65909.0920346,0.00022,2]
[401115198,1767942653257,-467.25,0.00022,7]
[401115199,1767942653267,-156.963818,0.00022,2]
[401115200,1767942653276,-335.0,0.00022,2]
[401115201,1767942653287,-2579.42145653,0.00022,20]
[401115202,1767942653672,-3e-08,0.00012388,2]
[401115203,1767942653684,-762.99013556,0.00012388,2]
[401115204,1767942711637,500.0,8.233e-05,2]
[401115205,1767942711668,500.0,8.233e-05,2]
[401115206,1767942711702,500.0,8.233e-05,2]
[401115207,1767942711735,500.0,8.233e-05,2]
[401115208,1767942711765,616.17349269,8.233e-05,2]
[401115209,1767942711800,500.0,8.233e-05,2]
[401115210,1767942711834,500.0,8.233e-05,2]
[401115211,1767942711868,500.0,8.233e-05,2]
[401115212,1767942711907,500.0,8.233e-05,2]
[401115213,1767942711946,484.04260239,8.233e-05,2]
[401115337,1767943686945,1000.0,0.0003,120]
[401115428,1767943831795,-247.80088326,9.172e-05,2]
[401115429,1767943831804,-548.0,9.172e-05,2]
[401115430,1767943831813,-17241.3812445,9.217e-05,2]
[401115431,1767943831822,-12.00258132,9.217e-05,2]
[401115432,1767943831833,-287.99741868,9.217e-05,2]
[401115433,1767943831843,-110.00258132,9.217e-05,2]
[401115467,1767943838135,-189.99741868,9.217e-05,2]
[401115468,1767943838145,-300.0,9.217e-05,2]
[401115469,1767943838155,-300.0,9.217e-05,2]
[401115470,1767943838164,-300.0,9.217e-05,2]
[401115471,1767943838173,-300.0,9.217e-05,2]
[401115472,1767943838183,-300.0,9.217e-05,2]
[401115473,1767943838192,-300.0,9.217e-05,2]
[401115474,1767943838201,-300.0,9.217e-05,2]
[401115475,1767943838211,-300.0,9.217e-05,2]
[401115477,1767943838220,-300.0,9.217e-05,2]
[401115478,1767943838230,-300.0,9.217e-05,2]
[401115479,1767943838239,-300.0,9.217e-05,2]
[401115481,1767943838249,-300.0,9.217e-05,2]
[401115484,1767943838259,-300.0,9.217e-05,2]
[401115486,1767943838269,-600.0,9.218e-05,2]
[401115488,1767943838278,-720.0,0.0001014,2]
[401115490,1767943838288,-864.0,0.00011153,2]
[401115492,1767943838297,-292.40504225,0.00011172,2]
[401115494,1767943838306,-275.14440131,0.00012119,2]
[401115496,1767943838316,-407.2322379,0.00012268,2]
[401115498,1767943838326,-500.0,0.00012268,2]
[401115500,1767943838335,-500.0,0.00012268,2]
[401115502,1767943838344,-642.02502383,0.00012268,2]
[401115504,1767943838354,-500.0,0.00012268,2]
[401115506,1767943838364,-238.00278042,0.00012268,2]